fUST/lending_fUST_20240726
["ID","MTS","AMOUNT","RATE_DAILY","PERIOD"]
[333193935,1721932259399,-500.0,0.00015068,2]
[333193936,1721932259409,-922.75,0.00015068,2]
[333193937,1721932259419,-3968.3,0.00015068,2]
[333193938,1721932259428,-179.345121,0.00015068,2]
[333193939,1721932259437,-179.345121,0.00015068,2]
[333193940,1721932259447,-1516.91,0.00015068,2]
[333193941,1721932259457,-500.0,0.00015068,2]
[333193942,1721932259468,-1773.9,0.00015068,2]
[333193943,1721932259478,-500.0,0.00015068,2]
[333193944,1721932259488,-500.0,0.00015068,2]
[333193945,1721932259499,-500.0,0.00015068,2]
[333193946,1721932259508,-1577.63,0.00015068,2]
[333193947,1721932259518,-542.46,0.00015068,2]
[333193948,1721932259528,-500.0,0.00015068,2]
[333193949,1721932259538,-730.35,0.00015068,2]
[333193950,1721932259548,-500.0,0.00015068,2]
[333193951,1721932259557,-799.53,0.00015068,2]
[333193952,1721932259567,-349.80289992,0.00015068,2]
[333193953,1721932259577,-1282.3,0.00015068,2]
[333193954,1721932259587,-6342.4,0.00015068,2]
[333193955,1721932259597,-500.0,0.00015068,2]
[333193956,1721932259606,-952.77,0.00015068,2]
[333193957,1721932259617,-522.22778828,0.00015068,2]
[333193958,1721932259626,-500.0,0.00015068,2]
[333193959,1721932259636,-580.62237727,0.00015068,2]
[333193960,1721932259646,-500.0,0.00015068,2]
[333193961,1721932259655,-484.33365906,0.00015068,2]
[333193962,1721932259665,-1021.45,0.00015068,2]
[333193963,1721932259675,-500.0,0.00015068,2]
[333193964,1721932259685,-615.14,0.00015068,2]
[333193965,1721932259695,-500.0,0.00015068,2]
[333193966,1721932259705,-1550.44,0.00015068,2]
[333193967,1721932259717,-597.37,0.00015068,2]
[333193968,1721932259727,-820.45,0.00015068,2]
[333193969,1721932259737,-500.0,0.00015068,2]
[333193970,1721932259748,-4616.0,0.00015068,2]
[333193971,1721932259758,-7952.53,0.00015068,2]
[333193972,1721932259770,-841.85,0.00015068,2]
[333193973,1721932259781,-500.0,0.00015068,2]
[333193974,1721932259792,-500.0,0.00015068,2]
[333193975,1721932259805,-655.68,0.00015068,2]
[333193976,1721932259814,-500.0,0.00015068,2]
[333193977,1721932259824,-1449.04,0.00015068,2]
[333193978,1721932259835,-1233.01,0.00015068,2]
[333193979,1721932259847,-1303.4,0.00015068,2]
[333193980,1721932259857,-503.92453443,0.00015068,2]
[333193981,1721932259867,-909.28,0.00015068,2]
[333193982,1721932259877,-500.0,0.00015068,2]
[333193983,1721932259887,-558.36,0.00015068,2]
[333193984,1721932259897,-1241.27,0.00015068,2]
[333193985,1721932259906,-500.0,0.00015068,2]
[333193986,1721932259917,-745.63,0.00015068,2]
[333193987,1721932260041,-2948.89,0.00015068,2]
[333193988,1721932260070,-1679.81,0.00015068,2]
[333193989,1721932260080,-2457.08,0.00015068,2]
[333193990,1721932260091,-500.0,0.00015068,2]
[333193991,1721932260103,-681.55,0.00015068,2]
[333193992,1721932260113,-988.48,0.00015068,2]
[333193993,1721932260123,-500.0,0.00015068,2]
[333193994,1721932260134,-1356.76,0.00015068,2]
[333193995,1721932260144,-500.0,0.00015068,2]
[333193996,1721932260156,-947.61,0.00015068,2]
[333193997,1721932260167,-500.0,0.00015068,2]
[333193998,1721932260180,-1367.3,0.00015068,2]
[333193999,1721932260190,-151.0,0.00015068,2]
[333194000,1721932260204,-1527.38,0.00015068,2]
[333194001,1721932260215,-533.43,0.00015068,2]
[333194002,1721932260225,-500.0,0.00015068,2]
[333194003,1721932260234,-705.53,0.00015068,2]
[333194004,1721932260247,-151.0,0.00015068,2]
[333194005,1721932260259,-1293.44,0.00015068,2]
[333194006,1721932260269,-500.0,0.00015068,2]
[333194007,1721932260281,-976.33,0.00015068,2]
[333194008,1721932260294,-384.35021531,0.00015068,2]
[333194009,1721932260304,-611.42,0.00015068,2]
[333194010,1721932260314,-500.0,0.00015068,2]
[333194011,1721932260325,-620.00474786,0.00015193,2]
[333194012,1721932260338,-500.0,0.00015342,2]
[333194013,1721932260350,-585.68,0.00015342,2]
[333194014,1721932260361,-565.93,0.00015342,2]
[333194015,1721932260371,-672.46,0.00015342,2]
[333194016,1721932260382,-730.6,0.00015342,2]
[333194017,1721932260391,-500.0,0.00015342,2]
[333194018,1721932260401,-500.0,0.00015342,2]
[333194019,1721932260412,-500.0,0.00015342,2]
[333194020,1721932260424,-551.33,0.00015342,2]
[333194021,1721932260435,-1095.31,0.00015342,2]
[333194022,1721932260444,-500.0,0.00015342,2]
[333194023,1721932260454,-500.0,0.00015342,2]
[333194024,1721932260465,-500.0,0.00015342,2]
[333194025,1721932260475,-500.0,0.00015342,2]
[333194026,1721932260484,-500.0,0.00015342,2]
[333194027,1721932260494,-500.0,0.00015342,2]
[333194028,1721932260504,-1209.31,0.00015342,2]
[333194029,1721932260514,-778.69,0.00015342,2]
[333194030,1721932260524,-786.05,0.00015342,2]
[333194031,1721932260534,-871.4,0.00015342,2]
[333194032,1721932260545,-500.0,0.00015342,2]
[333194033,1721932260555,-500.0,0.00015342,2]
[333194034,1721932260565,-500.0,0.00015342,2]
[333194035,1721932260575,-1184.69,0.00015342,2]
[333194036,1721932260585,-500.0,0.00015342,2]
[333194037,1721932260595,-500.0,0.00015342,2]
[333194038,1721932260605,-2092.76,0.00015342,2]
[333194039,1721932260615,-500.0,0.00015342,2]
[333194040,1721932260625,-500.0,0.00015342,2]
[333194041,1721932260635,-1331.71,0.00015342,2]
[333194042,1721932260645,-500.0,0.00015342,2]
[333194043,1721932260655,-503.93225912,0.00015342,2]
[333194044,1721932260665,-570.44,0.00015342,2]
[333194045,1721932260675,-715.998133,0.00015342,2]
[333194046,1721932260684,-841.82,0.00015342,2]
[333194047,1721932260694,-500.0,0.00015342,2]
[333194048,1721932260704,-715.998133,0.00015342,2]
[333194049,1721932260716,-646.51,0.00015342,2]
[333194050,1721932260725,-935.22,0.00015342,2]
[333194051,1721932260735,-610.0,0.00015342,2]
[333194052,1721932260745,-1213.76,0.00015342,2]
[333194053,1721932260755,-581.19,0.00015342,2]
[333194054,1721932260765,-1150.51,0.00015342,2]
[333194055,1721932260775,-500.0,0.00015342,2]
[333194056,1721932260785,-500.0,0.00015342,2]
[333194057,1721932260795,-500.0,0.00015342,2]
[333194058,1721932260804,-500.0,0.00015342,2]
[333194059,1721932260814,-500.0,0.00015342,2]
[333194060,1721932260824,-772.62,0.00015342,2]
[333194061,1721932260834,-1147.1,0.00015342,2]
[333194062,1721932260843,-500.0,0.00015342,2]
[333194063,1721932260853,-1301.14,0.00015342,2]
[333194064,1721932260862,-374.81731509,0.00015342,2]
[333194065,1721932260875,-500.0,0.00015342,2]
[333194066,1721932260887,-736.76,0.00015342,2]
[333194067,1721932260899,-660.58,0.00015342,2]
[333194068,1721932260909,-555.73,0.00015342,2]
[333194069,1721932260919,-500.0,0.00015342,2]
[333194070,1721932260930,-500.0,0.00015342,2]
[333194071,1721932260941,-1061.04,0.00015342,2]
[333194072,1721932260953,-1089.93,0.00015342,2]
[333194073,1721932260965,-500.0,0.00015342,2]
[333194074,1721932260975,-725.61,0.00015342,2]
[333194075,1721932260984,-500.0,0.00015342,2]
[333194076,1721932260993,-151.0,0.00015342,2]
[333194077,1721932261003,-1239.827232,0.00015342,2]
[333194078,1721932261016,-1239.827232,0.00015342,2]
[333194079,1721932261028,-500.0,0.00015342,2]
[333194080,1721932261038,-500.0,0.00015342,2]
[333194081,1721932261048,-500.0,0.00015342,2]
[333194082,1721932261059,-500.0,0.00015342,2]
[333194083,1721932261069,-984.29,0.00015342,2]
[333194084,1721932261079,-500.0,0.00015342,2]
[333194085,1721932261090,-500.0,0.00015342,2]
[333194086,1721932261102,-810.81,0.00015342,2]
[333194087,1721932261113,-748.53,0.00015342,2]
[333194088,1721932261122,-1061.88,0.00015342,2]
[333194089,1721932261134,-500.0,0.00015342,2]
[333194090,1721932261144,-583.9,0.00015342,2]
[333194091,1721932261153,-1025.05,0.00015342,2]
[333194092,1721932261163,-500.0,0.00015342,2]
[333194093,1721932261173,-500.0,0.00015342,2]
[333194094,1721932261184,-500.0,0.00015342,2]
[333194095,1721932261194,-500.0,0.00015342,2]
[333194096,1721932261209,-500.0,0.00015342,2]
[333194097,1721932261220,-873.61,0.00015342,2]
[333194098,1721932261230,-500.0,0.00015342,2]
[333194099,1721932261239,-500.0,0.00015342,2]
[333194100,1721932261249,-568.25,0.00015342,2]
[333194101,1721932261259,-500.0,0.00015342,2]
[333194102,1721932261269,-500.0,0.00015342,2]
[333194103,1721932261281,-577.62,0.00015342,2]
[333194104,1721932261292,-500.0,0.00015342,2]
[333194105,1721932261303,-762.91,0.00015342,2]
[333194106,1721932261313,-1016.64,0.00015342,2]
[333194107,1721932261323,-500.0,0.00015342,2]
[333194108,1721932261333,-500.0,0.00015342,2]
[333194109,1721932261343,-457.81825302,0.00015342,2]
[333194110,1721932261353,-583.71,0.00015342,2]
[333194111,1721932261363,-943.23,0.00015342,2]
[333194112,1721932261374,-1189.41,0.00015342,2]
[333194113,1721932261384,-500.0,0.00015342,2]
[333194114,1721932261393,-500.0,0.00015342,2]
[333194115,1721932261403,-2677.53,0.00015342,2]
[333194116,1721932261413,-500.0,0.00015342,2]
[333194117,1721932261422,-478.55941063,0.00015342,2]
[333194118,1721932261432,-500.0,0.00015342,2]
[333194119,1721932261442,-1535.05,0.00015342,2]
[333194120,1721932261451,-558.01,0.00015342,2]
[333194121,1721932261464,-500.0,0.00015342,2]
[333194122,1721932261473,-500.0,0.00015342,2]
[333194123,1721932261483,-500.0,0.00015342,2]
[333194124,1721932261492,-803.44,0.00015342,2]
[333194125,1721932261501,-500.0,0.00015342,2]
[333194126,1721932261511,-763.15,0.00015342,2]
[333194127,1721932261520,-2047.62,0.00015342,2]
[333194128,1721932261530,-632.07914845,0.00015342,2]
[333194129,1721932261539,-930.7,0.00015342,2]
[333194130,1721932261549,-500.0,0.00015342,2]
[333194131,1721932261559,-500.0,0.00015342,2]
[333194132,1721932261568,-500.0,0.00015342,2]
[333194133,1721932261579,-500.0,0.00015342,2]
[333194134,1721932261589,-500.0,0.00015342,2]
[333194135,1721932261599,-1645.24,0.00015342,2]
[333194136,1721932261608,-1866.43,0.00015342,2]
[333194137,1721932261618,-1767.75,0.00015342,2]
[333194138,1721932261627,-294.0,0.00015342,2]
[333194139,1721932261637,-1410.46,0.00015342,2]
[333194140,1721932261647,-927.64,0.00015342,2]
[333194141,1721932261657,-500.0,0.00015342,2]
[333194142,1721932261666,-2490.27,0.00015342,2]
[333194143,1721932261675,-500.0,0.00015342,2]
[333194144,1721932261685,-2655.16,0.00015342,2]
[333194145,1721932261694,-647.76,0.00015342,2]
[333194146,1721932261704,-584.78882949,0.00015342,2]
[333194147,1721932261715,-376.18821807,0.00015342,2]
[333194148,1721932261725,-9389.14,0.00015342,2]
[333194149,1721932261735,-500.0,0.00015342,2]
[333194150,1721932261745,-500.0,0.00015342,2]
[333194151,1721932261754,-500.0,0.00015342,2]
[333194152,1721932261764,-922.75,0.00015342,2]
[333194153,1721932261773,-3968.3,0.00015342,2]
[333194154,1721932261783,-179.345121,0.00015342,2]
[333194155,1721932261792,-179.345121,0.00015342,2]
[333194156,1721932261802,-1516.91,0.00015342,2]
[333194157,1721932261811,-508.06955036,0.00015342,2]
[333194158,1721932261820,-1773.9,0.00015342,2]
[333194159,1721932261830,-500.0,0.00015342,2]
[333194160,1721932261840,-500.0,0.00015342,2]
[333194161,1721932261849,-500.0,0.00015342,2]
[333194162,1721932261858,-1577.63,0.00015342,2]
[333194163,1721932261868,-542.46,0.00015342,2]
[333194164,1721932261877,-500.0,0.00015342,2]
[333194165,1721932261886,-730.35,0.00015342,2]
[333194166,1721932261896,-500.0,0.00015342,2]
[333194167,1721932261905,-799.53,0.00015342,2]
[333194168,1721932261914,-1282.3,0.00015342,2]
[333194169,1721932261924,-6342.4,0.00015342,2]
[333194170,1721932261933,-500.0,0.00015342,2]
[333194171,1721932261942,-952.77,0.00015342,2]
[333194172,1721932261952,-500.0,0.00015342,2]
[333194173,1721932261963,-500.0,0.00015342,2]
[333194174,1721932261972,-1021.45,0.00015342,2]
[333194175,1721932261982,-500.0,0.00015342,2]
[333194176,1721932261993,-500.0,0.00015342,2]
[333194177,1721932262002,-615.14,0.00015342,2]
[333194178,1721932262011,-1550.44,0.00015342,2]
[333194179,1721932262020,-597.37,0.00015342,2]
[333194180,1721932262030,-820.45,0.00015342,2]
[333194181,1721932262039,-500.0,0.00015342,2]
[333194182,1721932262048,-4616.0,0.00015342,2]
[333194183,1721932262058,-7952.53,0.00015342,2]
[333194184,1721932262067,-841.85,0.00015342,2]
[333194185,1721932262076,-500.0,0.00015342,2]
[333194186,1721932262086,-500.0,0.00015342,2]
[333194187,1721932262095,-655.68,0.00015342,2]
[333194188,1721932262104,-500.0,0.00015342,2]
[333194189,1721932262114,-1449.04,0.00015342,2]
[333194190,1721932262123,-1233.01,0.00015342,2]
[333194191,1721932262133,-1303.4,0.00015342,2]
[333194192,1721932262142,-909.28,0.00015342,2]
[333194193,1721932262151,-500.0,0.00015342,2]
[333194194,1721932262161,-558.36,0.00015342,2]
[333194195,1721932262171,-1241.27,0.00015342,2]
[333194196,1721932262181,-500.0,0.00015342,2]
[333194197,1721932262191,-745.63,0.00015342,2]
[333194198,1721932262202,-2948.89,0.00015342,2]
[333194199,1721932262217,-1679.81,0.00015342,2]
[333194200,1721932262226,-2457.08,0.00015342,2]
[333194201,1721932262235,-500.0,0.00015342,2]
[333194202,1721932262248,-681.55,0.00015342,2]
[333194203,1721932262258,-988.48,0.00015342,2]
[333194204,1721932262267,-391.94001569,0.00015342,2]
[333194205,1721932262278,-1103.83058044,0.00015342,2]
[333194206,1721932262591,-2706.07373212,0.000129,2]
[333194207,1721932262601,-1813.42,0.00013971,2]
[333194208,1721932262610,-564.60656348,0.00013971,2]
[333194209,1721932262622,-1014.5992497,0.00013971,2]
[333194210,1721932262633,-234.21418682,0.00013971,2]
[333194211,1721932262643,-257.27656348,0.00013971,2]
[333194212,1721932262812,-500.0,0.00013698,2]
[333194213,1721932262821,-2706.07373207,0.00013967,2]
[333194214,1721932262831,-1556.14343652,0.00013971,2]
[333194215,1721932262840,-1669.07800056,0.00013971,2]
[333194216,1721932262851,-144.34199944,0.00013971,2]
[333194217,1721932262860,-1813.42,0.00013971,2]
[333194218,1721932262870,-1813.42,0.00013971,2]
[333194219,1721932262879,-109.79309198,0.00014173,2]
[333194220,1721932262890,-40.20690802,0.00014173,2]
[333194221,1721932262900,-252.92941956,0.00015342,2]
[333194222,1721932262910,-510.83937489,0.00015342,2]
[333194223,1721932262919,-594.60014852,0.00015342,2]
[333194224,1721933233377,-727.18300294,9.702e-05,2]
[333194225,1721933233406,-727.18300294,9.8e-05,2]
[333194226,1721933233437,-300.0,9.998e-05,2]
[333194227,1721933233637,-180.32453325,9.999e-05,2]
[333194228,1721933233665,-156.34817131,9.999e-05,2]
[333194229,1721933233691,-492.98180621,9.999e-05,2]
[333194230,1721933233717,-155.59262358,9.999e-05,2]
[333194231,1721933233743,-568.08421519,9.999e-05,2]
[333194232,1721933233767,-240.59744191,9.999e-05,2]
[333194233,1721933233798,-447.96959447,9.999e-05,2]
[333194234,1721933233824,-287.20668663,0.0001,2]
[333194235,1721933233851,-6.52892157,0.00010998,2]
[333194236,1721933289820,-273.37336231,9.9e-05,2]
[333194237,1721933298123,273.37336231,9.9e-05,2]
[333194238,1721933306158,273.37336231,9.9e-05,2]
[333194239,1721933314502,273.37336231,9.9e-05,2]
[333194240,1721933322347,273.37336231,9.9e-05,2]
[333194241,1721933331410,273.37336231,9.9e-05,2]
[333194242,1721933339084,231.60275955,9.899e-05,2]
[333194243,1721933348456,231.60275955,9.899e-05,2]
[333194244,1721933357558,231.60275955,9.899e-05,2]
[333194245,1721933365762,231.60275955,9.899e-05,2]
[333194246,1721933373705,231.60275955,9.899e-05,2]
[333194247,1721933381799,231.60275955,9.899e-05,2]
[333194248,1721933389675,231.60275955,9.899e-05,2]
[333194249,1721933398986,15.54050929,9.899e-05,2]
[333194250,1721933422050,-216.06225026,9.899e-05,2]
[333194251,1721933428298,472.93774974,9.899e-05,2]
[333194473,1721933440435,-51.17897172,9.899e-05,2]
[333194474,1721933440447,-231.60275955,9.999e-05,2]
[333194476,1721933440457,-292.51396191,9.999e-05,2]
[333194477,1721933440471,-300.0,0.00010999,2]
[333194478,1721933440481,-24393.09898726,0.00011,2]
[333194480,1721933440941,-506.90101274,0.00011,2]
[333194481,1721933440951,-213.848479,0.00011298,2]
[333194482,1721933440960,-213.848479,0.00011329,2]
[333194483,1721933440969,-213.848479,0.0001136,2]
[333194484,1721933440979,-213.848479,0.00011391,2]
[333194485,1721933440989,-213.848479,0.00011422,2]
[333194486,1721933440999,-213.848479,0.00011453,2]
[333194487,1721933441008,-213.848479,0.00011484,2]
[333194488,1721933441017,-213.848479,0.00011515,2]
[333194489,1721933441027,-213.848479,0.00011546,2]
[333194490,1721933441036,-213.848479,0.00011577,2]
[333194491,1721933441045,-213.848479,0.00011608,2]
[333194492,1721933441055,-213.848479,0.00011639,2]
[333194493,1721933441064,-213.848479,0.0001167,2]
[333194494,1721933441074,-213.848479,0.00011701,2]
[333194495,1721933441083,-213.848479,0.00011732,2]
[333194496,1721933441093,-213.848479,0.00011763,2]
[333194497,1721933441104,-213.848479,0.00011794,2]
[333194498,1721933441114,-178.24850794,0.00011825,2]
[333194499,1721933441133,-35.59997106,0.00011825,2]
[333194500,1721933441143,-213.848479,0.00011856,2]
[333194501,1721933441155,-213.848479,0.00011887,2]
[333194502,1721933441165,-420.0,0.00012099,2]
[333194503,1721933441177,-2305.23397353,0.000129,2]
[333194504,1721933441186,-227.0,0.00013309,2]
[333194505,1721933441195,-200.0,0.00013425,2]
[333194506,1721933441205,-183.02272516,0.00013598,2]
[333194507,1721933441214,-258.11335717,0.00013666,2]
[333194508,1721933441224,-183.02272514,0.00013689,2]
[333194509,1721933441234,-500.0,0.00013698,2]
[333194510,1721933441243,-501.54052837,0.00013698,2]
[333194511,1721933441254,-500.0,0.00013698,2]
[333194512,1721933441264,-500.0,0.00013698,2]
[333194513,1721933441275,-500.0,0.00013698,2]
[333194514,1721933441284,-500.0,0.00013698,2]
[333194515,1721933441293,-500.0,0.00013698,2]
[333194516,1721933441304,-500.0,0.00013698,2]
[333194517,1721933441316,-602.36606478,0.00013698,2]
[333194518,1721933441329,-500.0,0.00013698,2]
[333194519,1721933441339,-224.1136796,0.00013698,2]
[333194520,1721933441351,-502.31656906,0.00013698,2]
[333194521,1721933441362,-503.71708603,0.00013698,2]
[333194522,1721933441373,-524.52769654,0.00013698,2]
[333194523,1721933441382,-500.0,0.00013698,2]
[333194524,1721933441392,-500.0,0.00013698,2]
[333194525,1721933441402,-500.0,0.00013698,2]
[333194526,1721933441413,-500.0,0.00013698,2]
[333194527,1721933441424,-500.0,0.00013698,2]
[333194528,1721933441434,-502.92560103,0.00013698,2]
[333194529,1721933441444,-519.39971363,0.00013698,2]
[333194530,1721933441454,-500.0,0.00013698,2]
[333194531,1721933441464,-513.97,0.00013698,2]
[333194532,1721933441473,-296.4585456,0.00013698,2]
[333194533,1721933441483,-500.0,0.00013698,2]
[333194534,1721933441492,-500.0,0.00013698,2]
[333194535,1721933441502,-500.0,0.00013698,2]
[333194536,1721933441511,-500.0,0.00013698,2]
[333194537,1721933441521,-500.0,0.00013698,2]
[333194538,1721933441531,-574.32,0.00013698,2]
[333194539,1721933441541,-500.0,0.00013698,2]
[333194540,1721933441554,-655.2,0.00013698,2]
[333194541,1721933441564,-500.0,0.00013698,2]
[333194542,1721933441574,-500.0,0.00013698,2]
[333194543,1721933441584,-500.0,0.00013698,2]
[333194544,1721933441594,-500.0,0.00013698,2]
[333194545,1721933441605,-500.0,0.00013698,2]
[333194546,1721933441615,-500.0,0.00013698,2]
[333194547,1721933441625,-500.0,0.00013698,2]
[333194548,1721933441635,-500.0,0.00013698,2]
[333194549,1721933441646,-500.0,0.00013698,2]
[333194550,1721933441655,-500.0,0.00013698,2]
[333194551,1721933441666,-500.0,0.00013698,2]
[333194552,1721933441677,-500.0,0.00013698,2]
[333194553,1721933441687,-500.0,0.00013698,2]
[333194554,1721933441697,-500.0,0.00013698,2]
[333194555,1721933441706,-500.0,0.00013698,2]
[333194556,1721933441717,-500.0,0.00013698,2]
[333194557,1721933441727,-500.0,0.00013698,2]
[333194558,1721933441736,-500.0,0.00013698,2]
[333194559,1721933441746,-500.0,0.00013698,2]
[333194560,1721933441756,-918.5,0.00013698,2]
[333194561,1721933441765,-500.0,0.00013698,2]
[333194562,1721933441774,-504.49189868,0.00013698,2]
[333194563,1721933441785,-500.0,0.00013698,2]
[333194564,1721933441794,-500.0,0.00013698,2]
[333194565,1721933441804,-500.0,0.00013698,2]
[333194566,1721933441814,-500.0,0.00013698,2]
[333194567,1721933441824,-500.0,0.00013698,2]
[333194568,1721933441834,-500.0,0.00013698,2]
[333194569,1721933441844,-500.0,0.00013698,2]
[333194570,1721933441854,-639.64,0.00013698,2]
[333194571,1721933441864,-500.0,0.00013698,2]
[333194572,1721933441874,-814.94,0.00013698,2]
[333194573,1721933441884,-662.45,0.00013698,2]
[333194574,1721933441894,-500.0,0.00013698,2]
[333194575,1721933441904,-500.0,0.00013698,2]
[333194576,1721933441914,-500.0,0.00013698,2]
[333194577,1721933441930,-500.0,0.00013698,2]
[333194578,1721933441940,-575.54,0.00013698,2]
[333194579,1721933441950,-521.88,0.00013698,2]
[333194580,1721933441960,-500.0,0.00013698,2]
[333194581,1721933441970,-567.43,0.00013698,2]
[333194582,1721933441981,-500.0,0.00013698,2]
[333194583,1721933441991,-500.0,0.00013698,2]
[333194584,1721933442000,-500.0,0.00013698,2]
[333194585,1721933442011,-806.07,0.00013698,2]
[333194586,1721933442021,-500.0,0.00013698,2]
[333194587,1721933442031,-500.0,0.00013698,2]
[333194588,1721933442041,-500.0,0.00013698,2]
[333194589,1721933442051,-500.0,0.00013698,2]
[333194590,1721933442062,-500.0,0.00013698,2]
[333194591,1721933442071,-500.0,0.00013698,2]
[333194592,1721933442081,-500.0,0.00013698,2]
[333194593,1721933442091,-500.0,0.00013698,2]
[333194594,1721933442101,-586.48,0.00013698,2]
[333194595,1721933442110,-500.0,0.00013698,2]
[333194596,1721933442120,-500.0,0.00013698,2]
[333194597,1721933442130,-522.52844013,0.00013698,2]
[333194598,1721933442140,-500.0,0.00013698,2]
[333194599,1721933442150,-561.4,0.00013698,2]
[333194600,1721933442160,-274.12816104,0.00013698,2]
[333194601,1721933442173,-823.25,0.00013698,2]
[333194602,1721933442183,-500.0,0.00013698,2]
[333194603,1721933442193,-500.0,0.00013698,2]
[333194604,1721933442203,-500.0,0.00013698,2]
[333194605,1721933442212,-738.21,0.00013698,2]
[333194606,1721933442221,-500.0,0.00013698,2]
[333194607,1721933442231,-500.0,0.00013698,2]
[333194608,1721933442241,-519.08,0.00013698,2]
[333194609,1721933442251,-500.0,0.00013698,2]
[333194610,1721933442261,-500.0,0.00013698,2]
[333194611,1721933442270,-840.65,0.00013698,2]
[333194612,1721933442280,-500.0,0.00013698,2]
[333194613,1721933442291,-500.0,0.00013698,2]
[333194614,1721933442300,-500.0,0.00013698,2]
[333194615,1721933442310,-500.0,0.00013698,2]
[333194616,1721933442320,-817.45,0.00013698,2]
[333194617,1721933442329,-811.5,0.00013698,2]
[333194618,1721933442339,-500.0,0.00013698,2]
[333194619,1721933442348,-500.0,0.00013698,2]
[333194620,1721933442358,-500.0,0.00013698,2]
[333194621,1721933442367,-600.0,0.00013698,2]
[333194622,1721933442376,-500.0,0.00013698,2]
[333194623,1721933442386,-500.0,0.00013698,2]
[333194624,1721933442395,-346.0941936,0.00013698,2]
[333194625,1721933442405,-500.0,0.00013698,2]
[333194626,1721933442415,-500.0,0.00013698,2]
[333194627,1721933442428,-1477.59,0.00013698,2]
[333194628,1721933442438,-500.0,0.00013698,2]
[333194629,1721933442447,-500.0,0.00013698,2]
[333194630,1721933442456,-500.0,0.00013698,2]
[333194631,1721933442467,-603.97,0.00013698,2]
[333194632,1721933442477,-500.0,0.00013698,2]
[333194633,1721933442486,-500.0,0.00013698,2]
[333194634,1721933442496,-500.0,0.00013698,2]
[333194635,1721933442505,-500.0,0.00013698,2]
[333194636,1721933442515,-386.88779555,0.00013698,2]
[333194637,1721933442524,-500.0,0.00013698,2]
[333194639,1721933442534,-500.0,0.00013698,2]
[333194641,1721933442545,-500.0,0.00013698,2]
[333194643,1721933442555,-804.84,0.00013698,2]
[333194645,1721933442566,-746.72,0.00013698,2]
[333194647,1721933442576,-500.0,0.00013698,2]
[333194649,1721933442586,-500.0,0.00013698,2]
[333194651,1721933442596,-500.0,0.00013698,2]
[333194653,1721933442606,-500.0,0.00013698,2]
[333194655,1721933442615,-506.80398208,0.00013698,2]
[333194658,1721933442627,-500.0,0.00013698,2]
[333194660,1721933442639,-500.0,0.00013698,2]
[333194661,1721933442650,-500.0,0.00013698,2]
[333194662,1721933442660,-500.0,0.00013698,2]
[333194663,1721933442669,-500.0,0.00013698,2]
[333194664,1721933442681,-592.80057666,0.00013698,2]
[333194665,1721933442690,-500.0,0.00013698,2]
[333194666,1721933442699,-500.0,0.00013698,2]
[333194668,1721933442709,-500.0,0.00013698,2]
[333194670,1721933442718,-500.0,0.00013698,2]
[333194672,1721933442729,-500.0,0.00013698,2]